Cogmind - Beta 13 @@@ ROGUE MODE // 2024.05.13 @ 16:47:15 Player: Chickoo Result: Destroyed by G-47 Trooper with Particle Gun Performance ------------- Evolutions (0) 0 Regions Visited (2) 400 Robots Destroyed (17) 85 Value Destroyed (383) 383 Prototype IDs (0) 0 Alien Tech Used (0) 0 Bonus (0) 0 TOTAL SCORE: 868 Bonus ------- None Cogmind --------- Core Integrity 0/250 Matter 297/300 Energy 265/265 System Corruption 0% Temperature Cool (14) Movement Walking (120) Location -10/Mines Parts ------- > --- POWER (1) -------- Improved Ion Engine > --- PROPULSION (2) --- Aluminum Leg Carbon-fiber Leg > --- UTILITY (2) ------ Medium Storage Unit Core Shielding > --- WEAPON (2) ------- Heavy Assault Rifle > --- INVENTORY (10) --- Light Nuclear Core Aluminum Leg Huge Storage Unit Structural Scanner Weapon Shielding Light Armor Plating Light Armor Plating Light Assault Rifle Light Assault Rifle Signal Generator Peak State ------------ > --- POWER ------------ Improved Ion Engine > --- PROPULSION ------- Aluminum Leg Carbon-fiber Leg > --- UTILITY ---------- Medium Storage Unit Core Shielding > --- WEAPON ----------- Assault Rifle Heavy Assault Rifle > --- INVENTORY -------- Light Nuclear Core Small Storage Unit Huge Storage Unit Structural Scanner ECM Suite Weapon Shielding Light Armor Plating Light Armor Plating Light Assault Rifle Light Assault Rifle [Rating: 12] Favorites ----------- Power Improved Ion Engine Engine Improved Ion Engine Power Core Light Nuclear Core Propulsion Aluminum Leg Leg Aluminum Leg Wheel Compact Wheel Utility Core Shielding Storage Medium Storage Unit Hackware Hacking Suite Protection Core Shielding Weapon Assault Rifle Ballistic Gun Assault Rifle Build | -11 -10 -10 ------- Run | Yrd Mat Min Slots Evolved . | . . . Power . | . . . Propulsion . | . . . Utility . | . . . Weapon . | . . . Parts Attached 24 | 6 8 10 Power 3 | 1 . 2 Engine 2 | 1 . 1 Core 1 | . . 1 Reactor . | . . . Propulsion 9 | 2 4 3 Treads . | . . . Leg 7 | 2 2 3 Wheel 2 | . 2 . Hover . | . . . Flight . | . . . Utility 5 | 1 2 2 Device . | . . . Storage 3 | 1 1 1 Processor . | . . . Hackware 1 | . 1 . Protection 1 | . . 1 Artifact . | . . . Weapon 7 | 2 2 3 Energy Gun . | . . . Energy Cannon . | . . . Ballistic Gun 7 | 2 2 3 Ballistic Cannon . | . . . Launcher . | . . . Special Weapon . | . . . Impact Weapon . | . . . Slashing Weapon . | . . . Piercing Weapon . | . . . Special Melee Weapon . | . . . Unidentified Prototypes . | . . . Parts Lost 9 | . 4 5 Power 1 | . 1 . Propulsion 4 | . 2 2 Utility 1 | . 1 . Weapon 3 | . . 3 Highest Loss Streak 7 | . 3 7 To Critical Strikes . | . . . Average Slot Usage (%) 97 | . 95 97 Engine 12 | . 13 12 Leg 21 | . 5 27 Wheel 5 | . 19 . Storage 14 | . 14 14 Hackware 3 | . 13 . Protection 9 | . . 13 Ballistic Gun 27 | . 28 27 Naked Turns . | . . . Heaviest Build 89 | 13 89 23 Greatest Support 26 | 20 26 25 Greatest Overweight (x) 6 | 4 5 6 Average Overweight (x) 1 | . 2 . Largest Inventory Capacity 25 | 8 25 25 Average Capacity 13 | 7 23 10 Most Carried 11 | 4 11 10 Average Carried 8 | 2 7 9 Final Capacity 25 | 8 25 10 Final Carried 10 | 4 9 10 Class Distribution -------------------- 62% | Scavenger-Mutant 37% | Mutant Dominant Class ---------------- Mutant | -10/Materials Scavenger-Mutant | -10/Mines Resources | -11 -10 -10 ----------- Run | Yrd Mat Min Matter Collected 654 | 182 144 328 Remotely . | . . . Salvage Created 517 | . 328 189 Parts 36 | . 20 16 Haulers Intercepted 1 | . 1 . Recyclers Shooed . | . . . Parts Field Recycled . | . . . Retrieved Matter . | . . . Parts Self-Destructed . | . . . Prevented . | . . . Kills | -11 -10 -10 ------- Run | Yrd Mat Min Combat Hostiles Destroyed 14 | . 6 8 Guns 14 | . 6 8 Classes Destroyed 5 | . 4 1 Tunneler 1 | . 1 . Hauler 1 | . 1 . Operator 1 | . 1 . Swarmer 6 | . . 6 Grunt 8 | . 6 2 Best Kill Streak 4 | . 4 3 Combat Bots Only 4 | . 4 3 Max Kills in Single Turn 1 | . 1 1 Gunslinging . | . . . Exploded . | . . . Melee . | . . . Uniques/NPCs Destroyed . | . . . Combat | -11 -10 -10 -------- Run | Yrd Mat Min Hostile Shots Fired 165 | . 106 59 Missed 47 | . 34 13 Damage Taken 1210 | . 706 504 Core 260 | . 129 131 Absorbed by Shields . | . . . Redirected to Shielding 17 | . . 17 Core Remaining (%) 100 | 100 . . Volleys Fired 51 | . 25 26 Largest 2 | . 2 2 Hottest 43 | . 40 43 Shots Fired 101 | . 50 51 Gun 101 | . 50 51 Cannon . | . . . Launcher . | . . . Special . | . . . Kinetic 101 | . 50 51 Thermal . | . . . Explosive . | . . . Electromagnetic . | . . . Robot Hit Streak 16 | . 16 5 Robot Miss Streak 3 | . 2 3 Penetration Max . | . . . Secondary Targets 1 | . . 1 Max Gunslinging Chain 1 | . . 1 Shots Hit Robots 63 | . 36 27 Core Hits 28 | . 17 11 Critical Kills . | . . . Critical Parts Destroyed . | . . . Critical Strikes . | . . . Melee Attacks . | . . . Impact . | . . . Slashing . | . . . Piercing . | . . . Sneak Attacks . | . . . Combat Hostiles . | . . . Follow-up Attacks . | . . . Damage Inflicted 796 | . 420 376 Guns 796 | . 420 376 Cannons . | . . . Explosions . | . . . Melee . | . . . Ramming . | . . . Kinetic 796 | . 420 376 Thermal . | . . . Explosive . | . . . Electromagnetic . | . . . Impact . | . . . Slashing . | . . . Piercing . | . . . Highest Corruption . | . . . Average Corruption . | . . . Corruption Purged . | . . . Corruption Blocked . | . . . Overload Shots . | . . . Overflow Damage . | . . . Projectiles . | . . . Explosions . | . . . Melee . | . . . Knockbacks . | . . . Impact . | . . . Kinetic . | . . . Secondary . | . . . Self-Inflicted Damage . | . . . Shots . | . . . Rammed . | . . . Targets Rammed . | . . . Kicked . | . . . Crushed . | . . . Highest Temperature 18 | . 18 15 Average Temperature 7 | . 7 6 Received Heat Transfer 417 | . 240 177 Siege Activations . | . . . Robots Corrupted . | . . . Combat Hostiles . | . . . Parts Fried . | . . . Impact Corruptions . | . . . Robots Melted . | . . . Combat Hostiles . | . . . Parts Melted . | . . . Heat Transferred . | . . . Parts Sabotaged . | . . . Parts Stolen . | . . . Parts Stripped . | . . . Power Chain Reactions . | . . . Alert | -11 -10 -10 ------- Run | Yrd Mat Min Peak Influence 251 | . 251 140 Initial 85 | . . 85 Average 91 | . 129 82 Maximum Alert Level 1 | . 1 . Low Security (%) 92 | 100 70 100 Level 1 7 | . 29 . Level 2 . | . . . Level 3 . | . . . Level 4 . | . . . Level 5 . | . . . High Security . | . . . Max Security . | . . . Squads Dispatched 3 | . 2 1 Investigation . | . . . Extermination . | . . . Reinforcement 2 | . 2 . Assault 1 | . . 1 Garrison . | . . . Intercept . | . . . Searches Triggered . | . . . Construction Impeded . | . . . Haulers Reinforced . | . . . Active Scanning Responses . | . . . Cargo Convoy Interrupts . | . . . Stealth | -11 -10 -10 --------- Run | Yrd Mat Min Distress Signals 1 | . 1 . Communications Jammed . | . . . Distress Signals . | . . . Times Spotted 32 | . 20 12 Peak Tracking Total 8 | . 8 4 Tactical Retreats 1 | . 1 . Traps | -11 -10 -10 ------- Run | Yrd Mat Min Traps Triggered . | . . . Indirectly . | . . . Trap Hack Attempts . | . . . Triggered . | . . . Disarmed . | . . . Reprogrammed . | . . . Reused . | . . . Traps Extracted . | . . . Installed . | . . . Triggered . | . . . Machines | -11 -10 -10 ---------- Run | Yrd Mat Min Machines Disabled . | . . . Max in Single Turn . | . . . Machines Repaired . | . . . Machines Dismantled . | . . . Machines Sabotaged . | . . . Overloaded Fab Kills . | . . . Hacking | -11 -10 -10 --------- Run | Yrd Mat Min Machines Accessed 1 | . 1 . Terminals 1 | . 1 . Fabricators . | . . . Repair Stations . | . . . Recycling Units . | . . . Scanalyzers . | . . . Garrison Access . | . . . Total Hacks 2 | . 2 . Successful 1 | . 1 . Failed 1 | . 1 . Catastrophic . | . . . Database Lockouts . | . . . Manual 1 | . 1 . Terminals 2 | . 2 . Fabricators . | . . . Repair Stations . | . . . Recycling Units . | . . . Scanalyzers . | . . . Garrison Access . | . . . Terminal Hacks . | . . . Fabricator Hacks . | . . . Repair Station Hacks . | . . . Recycling Unit Hacks . | . . . Scanalyzer . | . . . Garrison Access Hacks . | . . . Unauthorized Hacks 1 | . 1 . Terminals 1 | . 1 . Botnet 1 | . 1 . Fabricators . | . . . Repair Stations . | . . . Recycling Units . | . . . Scanalyzers . | . . . Garrison Access . | . . . Data Cores Recovered . | . . . Used . | . . . Hacking Detections 1 | . 1 . Full Trace Events . | . . . Feedback Events . | . . . Feedback Blocked . | . . . Robot Schematics Acquired . | . . . Robots Built . | . . . Authchips . | . . . Time . | . . . Total Robot Build Rating . | . . . Part Schematics Acquired . | . . . Parts Built . | . . . Authchips . | . . . Time . | . . . Total Part Build Rating . | . . . Parts Repaired . | . . . Time . | . . . Parts Recycled . | . . . Recycled Matter . | . . . Retrieved Matter . | . . . Retrieved Components . | . . . Parts Scanalyzed . | . . . Part Schematics Acquired . | . . . Parts Damaged . | . . . Bothacking | -11 -10 -10 ------------ Run | Yrd Mat Min Used RIF Installer . | . . . Robots Hacked . | . . . Non-combat . | . . . Combat . | . . . Robot Hacks Applied . | . . . Relay Couplers Released . | . . . Fabnet Peak Effective % . | . . . Robots Rewired . | . . . Allies Hacked . | . . . Hacks Repelled . | . . . Allies | -11 -10 -10 -------- Run | Yrd Mat Min Total Allies 1 | . . 1 Largest Group 1 | . . 1 Highest-Rated Group 31 | . . 31 Highest-Rated Ally 31 | . . 31 Total Orders . | . . . Ally Attacks 6 | . . 6 Total Damage 61 | . . 61 Kills . | . . . Allies Corrupted . | . . . Allies Melted . | . . . Intel | -11 -10 -10 ------- Run | Yrd Mat Min Robot Analysis Total . | . . . Derelict Logs Recovered 1 | . . 1 Drone Launches . | . . . Drone Recoveries . | . . . Exploration | -11 -10 -10 ------------- Run | Yrd Mat Min Turns Passed 1240 | 61 334 845 Spaces Moved 617 | 35 154 428 Core 15 | 12 . 3 Treads . | . . . Legs 480 | 23 32 425 Wheels 122 | . 122 . Hover . | . . . Flight . | . . . Fastest Speed 50 | 50 120 120 Average Speed 168 | 139 158 174 Slowest Speed 400 | 250 400 350 Overloaded Moves . | . . . Propulsion Burnouts . | . . . Robots Hopped . | . . . Cave-ins Triggered . | . . . Exploration Rate (%) 40 | 4 40 77 Regions Visited 2 Branch Regions 1 Pre-discovered Areas 1 | . . 1 Known Exits Taken . | . . . Unknown Exits Taken 2 | 1 1 . Scrap Searched 1 | . . 1 Spaces Dug . | . . . Terrain Destroyed . | . . . Melee . | . . . Projectile . | . . . AOE . | . . . Terrain Rammed . | . . . Walls Destroyed . | . . . Machines Disabled . | . . . Actions | -11 -10 -10 --------- Run | Yrd Mat Min Total 719 | 44 199 476 Wait 9 | . 9 . Move 615 | 34 153 428 Hop . | . . . Pick Up 14 | 4 4 6 Fast Attach 11 | 6 1 4 Attach 5 | . 2 3 Detach 1 | . . 1 Swap 8 | . 5 3 Drop 5 | . . 5 Fire 51 | . 25 26 Melee . | . . . Ram . | . . . Kick . | . . . Crush . | . . . Escape Stasis . | . . . Rewire . | . . . Trap . | . . . Miscellaneous . | . . . Route ------- -11/Scrapyard -10/Materials (discovered 2 exits: [*Min x2]) -10/Mines (discovered 1 exit: [*Mat]) History --------- Turn | Location | Event 27 | -11/Scrapyard | Discovered new exit (range 14) 62 | -11/Scrapyard | Entered Materials 139 | -10/Materials | Discovered new exit (range 11) 211 | -10/Materials | Discovered new exit (range 14) 305 | -10/Materials | Build established: Mutant 393 | -10/Materials | Core integrity fell below 50% 396 | -10/Materials | Entered Mines 427 | -10/Mines | Core integrity fell below 20% 451 | -10/Mines | Lost 7 parts (1p3n1u2w) 463 | -10/Mines | Joined a pair of Derelicts in attacking an 0b10 outpost 787 | -10/Mines | Build established: Scavenger-Mutant 821 | -10/Mines | Learned location of Zion (-6) 834 | -10/Mines | Discovered new exit (range 12) 1183 | -10/Mines | Met a Derelict testing a Signal Generator 1195 | -10/Mines | Found Signal Generator 1241 | -10/Mines | Destroyed by G-47 Trooper with Particle Gun Last Messages --------------- 01046_ K-01 Serf collects debris. 01052_ K-01 Serf cleans the Core Extractor. 01061_ K-01 Serf collects debris. 01124_ Acquired 6 matter. 01137_ Dropped Aluminum Leg. 01146_ Acquired 10 matter. 01157_ Dropped Sml. Storage Unit. 01157_ Acquired Aluminum Leg. 01183_ A derelict emerges from the shadows: "Quiet! I'm testing a new device we can use to divert those annoying Unaware when we need to." 01187_ Signal Generator broadcasts a burst of procedurally generated transmissions. 01187_ ALERT: Intercepting significant anomalous signal. Dispatching assault force. 01188_ XB-IG1(g): "Okay, I guess that means it works. Now let's get out of here!" 01194_ Dropped ECM Suite. 01195_ Acquired Signal Generator. 01238_ XB-IG1(g) destroyed. 01239_ Assault Rifle destroyed. Map ----- +----------------------------------------------------+ | #????????????????????????????????????????????? | | ############????????######???????????????????? | | [ #???????##"!|"##??????????????????? | | = [[% #???????#"" ""#???#####??????????? | | ########## #???????#%![! #??## ##?????????? | | #?????#### ###????###!! ##??# ######????? | | ??????# ###### ##++####?# ##???? | | ??????# #??# ! #???? | | ??????# ##### #?## #???? | | ??????# #???## #??# ##???? | | ??????# ! #????## ##??## ####????? | | ??????#########?????#### ##????## ##???????? | | ???????????????????????#####??????# ###??????? | | ?????????????????????????????????## ##?????? | | ???????????????????####??????????# ##????? | | # ##??????????##### ##????????## #????? | | #?????????## ##??????## #????? | | #?????????# ##????## ##????? | | ##?????????# ##?### ##?????? | | ##???????????# ### #??????? | | ###????????????##### #??????? | | ### #########??## #??????? | | ##?## ##??????? | | ### #??## #???????? | | ????????????# #???## #???????? | | ????????????# #????##@ [%* #??????? | | ????????????# ! ##???## ! #??????? | | ????????????# [%!#####%[ ##??????? | | ????######### ## ##### ##???????? | | ????# g##???######????????? | | ????# =! g##??????????????????? | | ##### ####### |%! g##???????????????????? | | #?????## ##gt##????????????????????? | | #####!#??????#########% #???#############?????? | | ????# #?????###??????# #???# #?????? | | ????#!#????# ##?????# #???# """ """ #?????? | | ????# #???# ##????# #???# """ """ #?????? | | ????#*#### #????# #???# """ """ #?????? | | ????# ## #????# #####[ #?????? | | ???## #?????# =[ *""" """ #?????? | | ??## ######?????# ### #=""" """ #?????? | | ### #####??????????# #?#[# """ """ #?????? | | ## ##??????????????# #?# # #?????? | | ##???????????????# #?# #############?????? | | ##???????????????## ### #?????????????????? | | ###???????????????## #?????????????????? | | ##?????????????????# ####?????????????????? | | ##????????????????## #????????????????????? | | ##???????????????# ##????????????????????? | | ################# ##?????????????????????? | +----------------------------------------------------+ Best States ------------- Heat Dissipation 25 Energy Generation 14 Energy Capacity 265 Matter Stores 300 Matter Capacity 300 Sight Range 16 Terrain Scan Density 10 Core Shielding 20 Evasion (%) 55 Offensive Hacking 10 Item Schematics ----------------- None Robot Schematics ------------------ None Fabricated ------------ Nothing Alien Tech Used ----------------- None Achievements -------------- None Challenges ------------ None Game ------ Seed RainbowChromaticRegenerator Manual? 0 Play Time 00:08:41 Cumulative 38.9 hours Start 2024.05.13 @ 16:39:17 End 2024.05.13 @ 16:47:15 Sessions 1 Manual Loads 0 Difficulty Rogue Special Mode None Game No. 28 Rogue 28 Adventurer 0 Explorer 0 Win Type - Total 0 Types 0/0/0/0/0/0/0/0/0 Lore% 24 Gallery% 36 Achievement% 30 Wizard Run 0 Options --------- Layout 0 ASCII 0 Keyboard 0 Movement Mouse Keybinds 0 Fullscreen 1 Font 24/Smallcaps Map View 76x50 Zoom Use 0% Tactical HUD 1 Map Filters NONE Filters NONE Steam 1 RUN: bf0d0eb5-b318-4241-a862-10445546dc42